bitfinex/quotes_ETHUSD_20241106
["timestamp","ask_amount","ask_price","bid_price","bid_amount"]
[1730934303253,0.7535,2730.6,2729.8,0.55]
[1730934303456,0.7535,2730.6,2729.9,3.0]
[1730934303665,0.7535,2731.1,2730.2,4.31554492]
[1730934303867,0.7535,2731.1,2730.3,3.55]
[1730934304069,0.01,2731.0,2730.3,3.55]
[1730934304287,0.7535,2731.1,2730.3,3.55]
[1730934304995,0.7635,2731.1,2730.3,0.55]
[1730934305211,0.7635,2731.1,2730.3,3.0]
[1730934305496,0.7635,2731.1,2729.6,0.37939047]
[1730934305497,0.7635,2730.6,2729.6,3.37939047]
[1730934306397,0.7535,2730.6,2729.6,3.37939047]
[1730934307518,0.01,2730.5,2729.6,3.37939047]
[1730934307749,0.01,2730.3,2729.6,0.37939047]
[1730934307884,0.7535,2730.2,2729.6,0.37939047]
[1730934309015,0.7635,2730.2,2729.6,0.37939047]
[1730934309476,0.7635,2730.2,2729.2,3.0]
[1730934309881,0.7635,2730.2,2729.3,0.37949058]
[1730934310372,0.7535,2730.2,2729.6,3.55]
[1730934310577,0.7535,2730.6,2729.6,4.0010732]
[1730934310827,0.7723,2731.1,2730.4,0.55]
[1730934311179,4.31554492,2730.9,2729.7,0.4510732]
[1730934311431,4.31554492,2730.9,2728.4,4.31554492]
[1730934311432,0.2808,2729.9,2728.4,4.31554492]
[1730934311648,0.01,2729.8,2728.4,4.31554492]
[1730934311798,0.2808,2729.4,2729.0,0.38005675]
[1730934312001,0.2808,2729.4,2728.4,4.31554492]
[1730934312531,1.42572999,2730.4,2728.1,0.130987]
[1730934312532,0.5641,2729.2,2728.1,0.130987]
[1730934312893,0.5641,2729.2,2728.2,0.37983144]
[1730934313108,0.02,2729.3,2728.2,0.37983144]
[1730934313109,0.5641,2729.0,2728.2,0.37983144]
[1730934313939,0.5741,2729.0,2728.2,0.37983144]
[1730934314295,0.5641,2729.0,2728.2,0.37983144]
[1730934314542,0.5741,2729.0,2728.2,0.37983144]
[1730934314739,0.01,2728.9,2728.2,0.37983144]
[1730934314911,0.01,2728.9,2728.1,0.130987]
[1730934316336,0.5741,2729.0,2728.2,0.55]
[1730934316337,0.5641,2729.0,2728.2,0.55]
[1730934316537,0.5641,2729.0,2728.1,3.130987]
[1730934316538,0.5641,2729.0,2728.5,3.55]
[1730934317706,0.5641,2729.0,2728.3,0.3680987]
[1730934317903,0.5641,2729.0,2728.1,3.130987]
[1730934318230,0.5641,2729.0,2728.2,0.55]
[1730934318547,0.5641,2729.0,2728.1,3.130987]
[1730934318904,0.5641,2729.0,2728.1,0.130987]
[1730934318905,0.01,2728.9,2728.1,0.130987]
[1730934319107,0.01,2728.7,2728.1,0.130987]
[1730934319305,0.5741,2728.8,2728.1,0.130987]
[1730934319772,0.5641,2728.8,2728.1,0.130987]
[1730934319923,0.5741,2728.8,2728.1,0.130987]
[1730934320118,0.5641,2728.8,2728.1,0.130987]
[1730934320321,0.5741,2728.8,2728.1,0.130987]
[1730934320535,0.5841,2728.8,2728.1,0.130987]
[1730934323509,0.5641,2728.4,2728.1,0.130987]
[1730934325295,0.5741,2728.4,2728.1,0.130987]
[1730934325423,0.01,2728.5,2728.1,0.130987]
[1730934325424,0.5841,2728.2,2728.1,0.130987]
[1730934325629,0.5741,2728.2,2728.1,0.130987]
[1730934326253,0.5841,2728.2,2728.1,0.130987]
[1730934326412,0.5741,2728.2,2728.1,0.130987]
[1730934326613,0.5641,2728.2,2728.1,0.130987]
[1730934326826,0.5741,2728.2,2728.1,0.130987]
[1730934327242,0.5841,2728.2,2728.1,0.130987]
[1730934330756,0.67575614,2728.2,2728.1,0.130987]
[1730934331386,0.67575614,2728.2,2727.0,0.73516419]
[1730934331387,0.02,2727.3,2727.0,0.73516419]
[1730934331623,0.02,2727.3,2727.0,0.35583104]
[1730934331752,0.01,2727.4,2727.0,0.35583104]
[1730934331947,0.01,2727.3,2727.0,0.35583104]
[1730934332179,0.01,2727.4,2727.0,0.30583104]
[1730934332701,0.02,2727.4,2727.0,0.30583104]
[1730934333571,0.01,2727.4,2727.0,0.30583104]
[1730934333774,0.02,2727.4,2727.0,0.30583104]
[1730934334478,0.4331,2727.5,2727.0,0.30583104]
[1730934334682,0.4431,2727.5,2727.0,0.30583104]
[1730934335179,0.4331,2727.5,2727.0,0.30583104]
[1730934335349,0.4431,2727.5,2727.0,0.30583104]
[1730934336292,0.02,2727.8,2727.0,0.30583104]
[1730934336464,0.01,2727.6,2727.0,0.30583104]
[1730934337352,0.01,2727.5,2727.0,1.05703104]
[1730934337792,0.01,2727.5,2727.0,0.30583104]
[1730934338006,0.02,2727.8,2727.0,0.30583104]
[1730934338617,0.4331,2727.9,2727.0,0.30583104]
[1730934338769,0.4331,2727.9,2727.0,0.63641414]
[1730934339396,0.01,2727.8,2727.0,0.63641414]
[1730934340007,0.02,2727.6,2727.0,0.63641414]
[1730934340916,0.02,2727.6,2727.0,0.30583104]
[1730934341208,0.01,2727.4,2727.0,0.30583104]
[1730934341724,0.02,2727.4,2727.0,0.30583104]
[1730934342706,0.09166286,2727.8,2727.0,0.30583104]
[1730934342707,0.01,2727.1,2727.0,0.30583104]
[1730934343203,0.07252833,2727.1,2727.0,0.30583104]
[1730934344604,0.01,2727.1,2727.0,0.30583104]
[1730934345729,0.45046,2727.6,2727.0,0.30583104]
[1730934345917,0.00736,2727.4,2727.0,0.30583104]
[1730934346252,0.01736,2727.4,2727.0,0.30583104]
[1730934348016,0.01,2727.2,2727.0,0.30583104]
[1730934348957,0.01736,2727.4,2727.0,0.30583104]
[1730934349379,0.00736,2727.4,2727.1,0.49674147]
[1730934349547,0.01736,2727.4,2727.1,0.49674147]
[1730934349745,0.01736,2727.4,2727.0,1.05823104]
[1730934350051,0.00736,2727.4,2727.0,1.05823104]
[1730934350252,0.01736,2727.4,2727.0,1.05823104]
[1730934350661,0.01736,2727.4,2727.0,0.30583104]
[1730934351946,0.01736,2727.2,2727.0,0.30583104]
[1730934352465,1.05351194,2727.1,2727.0,0.30583104]
[1730934352674,1.6038566,2727.1,2727.0,0.30583104]
[1730934353288,0.01736,2726.4,2726.3,0.36918349]
[1730934353839,0.07736734,2726.4,2726.3,0.36918349]
[1730934354076,0.01736,2726.4,2726.3,0.36918349]
[1730934354286,0.0673583,2726.4,2726.3,0.36918349]
[1730934354578,0.0555732,2726.4,2726.3,0.36918349]
[1730934354796,0.4331,2727.3,2726.4,0.8305]
[1730934354948,0.00736,2727.2,2726.4,3.8305]
[1730934355488,0.01736,2727.4,2726.4,3.8305]
[1730934355788,0.44046,2727.6,2726.4,3.8305]
[1730934355936,0.44046,2728.0,2727.5,4.33090628]
[1730934356141,0.01,2728.3,2727.6,3.0]
[1730934356451,0.01,2728.6,2727.7,3.8126]
[1730934356653,0.52472897,2728.8,2727.7,3.8126]
[1730934356654,0.4331,2728.8,2727.7,3.8126]
[1730934356881,0.00736,2728.9,2728.1,3.0]
[1730934357289,0.00736,2728.9,2727.8,0.55]
[1730934358802,0.00736,2728.9,2727.7,3.8126]
[1730934358803,0.01,2728.6,2727.7,3.8126]
[1730934359166,0.01,2728.8,2727.8,0.55]
[1730934359392,0.00632688,2728.9,2727.8,0.55]
[1730934359805,0.01,2729.0,2727.9,0.7557]
[1730934359989,0.00632688,2728.8,2728.0,0.55]
[1730934360304,0.00632688,2728.8,2727.9,0.7557]
[1730934360305,0.01632688,2728.8,2727.9,0.7557]
[1730934361984,0.01,2728.6,2727.9,0.7557]
[1730934362607,0.01,2728.0,2727.4,0.7616]
[1730934362776,0.00632688,2728.3,2727.4,0.7616]
[1730934362777,0.00632688,2728.3,2727.4,1.27225745]
[1730934363100,0.4331,2728.5,2727.4,1.27225745]
[1730934363302,0.00632688,2728.4,2727.4,1.27225745]
[1730934364010,0.00632688,2728.4,2727.5,0.55]
[1730934364334,0.01632688,2728.4,2727.4,0.7616]
[1730934364516,0.01,2728.0,2727.4,0.7616]
[1730934364885,0.01,2727.8,2727.1,0.8261]
[1730934365186,0.00632688,2727.7,2726.6,0.8261]
[1730934365398,0.01,2727.8,2726.6,0.8261]
[1730934365399,0.01632688,2727.5,2726.6,1.33675745]
[1730934365583,0.4431,2727.5,2726.7,0.51065745]
[1730934365786,0.01,2727.2,2726.4,0.51065745]
[1730934366096,0.01,2726.8,2726.4,0.51065745]
[1730934366419,0.4431,2726.8,2726.1,0.37935494]
[1730934366617,0.01,2726.6,2726.1,0.37935494]
[1730934366909,0.01,2726.4,2726.1,0.37935494]
[1730934367115,0.01,2726.4,2725.5,1.26495745]
[1730934367277,0.06715243,2726.4,2725.5,1.26495745]
[1730934367474,0.01632688,2726.4,2725.7,0.3790175]
[1730934367820,0.44942688,2726.4,2725.3,0.130987]
[1730934368003,0.50007405,2726.4,2725.3,0.130987]
[1730934368540,1.14178805,2726.4,2725.3,0.130987]
[1730934368898,1.08338548,2726.4,2725.3,0.130987]
[1730934369353,0.4431,2725.7,2725.3,0.130987]
[1730934369808,0.49300875,2725.7,2725.3,0.130987]
[1730934370117,0.58473579,2725.7,2725.3,0.130987]
[1730934371543,0.57473579,2725.7,2725.3,0.130987]
[1730934371702,0.49300875,2725.7,2725.3,0.130987]
[1730934372238,1.14473331,2725.7,2725.3,0.130987]
[1730934373105,0.58473331,2725.7,2725.3,0.130987]
[1730934373629,0.04990875,2725.7,2725.3,0.130987]
[1730934373844,0.01,2725.8,2725.3,0.130987]
[1730934374361,0.7641862,2727.0,2725.3,0.130987]
[1730934374654,2.29015241,2727.7,2725.3,0.130987]
[1730934374655,8.12966448,2732.0,2728.5,18.295]
[1730934374866,1.14148068,2730.0,2728.1,19.31]
[1730934375159,1.14148068,2730.0,2726.1,0.01]
[1730934375160,4.71889681,2734.8,2734.7,3.6567]
[1730934375336,4.71889681,2734.8,2731.5,0.74917631]
[1730934375337,5.19078649,2734.8,2731.5,0.74917631]
[1730934375709,5.19078649,2734.8,2731.1,0.73917631]
[1730934375710,4.71889681,2733.4,2731.1,0.73917631]
[1730934375857,4.71889681,2733.4,2730.5,3.0]
[1730934375858,4.71889681,2733.4,2731.2,2.10839518]
[1730934376069,2.03234705,2734.3,2730.5,0.73917631]
[1730934376070,4.71889681,2732.9,2730.5,0.73917631]
[1730934376351,4.71889681,2732.9,2729.9,6.25763571]
[1730934376352,4.71889681,2732.4,2730.6,3.96433479]
[1730934376653,4.71889681,2731.9,2729.9,0.37853089]
[1730934376855,0.09158497,2731.8,2729.9,0.28595919]
[1730934377155,0.55,2731.6,2729.9,0.28595919]
[1730934377364,0.55,2731.4,2729.9,0.28595919]
[1730934377516,2.7687,2731.7,2729.9,0.28595919]
[1730934377517,0.55,2731.2,2729.9,0.28595919]
[1730934377856,0.55,2731.0,2729.9,0.28595919]
[1730934378068,0.55,2730.8,2729.9,0.28595919]
[1730934378213,0.09158695,2730.7,2729.9,0.28595919]
[1730934378617,0.27687,2731.6,2729.9,0.28595919]
[1730934378618,0.55,2731.5,2729.9,0.28595919]
[1730934378924,0.03596817,2731.4,2729.9,0.28595919]
[1730934379117,0.03596817,2731.4,2730.2,4.71889681]
[1730934379314,0.03596817,2732.8,2730.2,4.71889681]
[1730934379528,0.4754865,2732.7,2730.2,4.71889681]
[1730934379723,0.03596817,2732.6,2730.2,4.71889681]
[1730934379971,0.03596817,2732.6,2730.3,3.08324443]
[1730934380131,0.03596817,2732.6,2730.8,4.71889681]
[1730934381544,0.03596817,2732.6,2730.0,4.71889681]
[1730934381727,0.55,2732.4,2730.0,4.71889681]
[1730934381960,3.12716314,2735.2,2733.2,0.7746]
[1730934382161,0.73889337,2735.5,2734.3,4.71889681]
[1730934382465,0.73889337,2735.5,2733.3,4.71889681]
[1730934382636,0.73889337,2735.5,2732.8,4.71889681]
[1730934382834,4.71889681,2735.9,2732.8,4.71889681]
[1730934382835,0.39157948,2735.4,2732.8,4.71889681]
[1730934383044,0.86346916,2735.8,2732.8,4.71889681]
[1730934383635,0.47188968,2735.8,2733.4,0.56]
[1730934383841,0.47188968,2735.8,2734.3,4.71889681]
[1730934384073,0.130987,2736.2,2734.3,4.72889681]
[1730934384368,0.130987,2736.2,2734.3,4.71889681]
[1730934384542,0.130987,2736.2,2734.3,4.72889681]
[1730934384740,0.130987,2736.2,2734.6,0.01]
[1730934385063,0.130987,2736.2,2734.8,0.01]
[1730934385368,0.130987,2736.2,2734.6,0.02]
[1730934385582,0.130987,2736.2,2734.8,0.01]
[1730934385867,6.51995391,2736.9,2734.9,0.56]
[1730934385868,0.62111651,2736.9,2734.9,0.56]
[1730934386163,5.8988374,2737.4,2734.9,0.56]
[1730934386164,6.8549154,2737.9,2735.7,0.01]
[1730934386579,5.8988374,2738.4,2735.7,0.50228062]
[1730934386743,6.6734374,2738.4,2736.0,0.01]
[1730934386940,0.66734374,2738.3,2736.0,0.01]
[1730934387132,0.66734374,2738.3,2736.0,0.08308777]
[1730934387333,0.66734374,2738.3,2735.8,1.03228062]
[1730934387529,5.8988374,2737.9,2735.8,0.56]
[1730934387729,5.8988374,2737.9,2735.7,0.01]
[1730934387730,5.8988374,2737.9,2735.7,0.56]
[1730934387964,5.8988374,2737.4,2735.4,0.48228062]
[1730934388132,5.8988374,2737.4,2735.2,0.7746]
[1730934388333,5.8988374,2737.4,2735.3,0.01]
[1730934388568,5.8988374,2737.4,2735.3,0.08310377]
[1730934388739,3.0,2737.3,2735.3,0.01]
[1730934389065,1.43988374,2737.2,2735.3,0.08310591]
[1730934389370,1.43988374,2737.2,2735.3,0.56]
[1730934389541,0.05350581,2737.1,2735.5,0.01]
[1730934389878,0.05350581,2737.1,2735.6,1.03228062]
[1730934390059,0.05350581,2737.1,2735.6,1.50607783]
[1730934390259,3.58988374,2737.8,2735.7,0.08309763]
[1730934390572,1.00275931,2737.7,2736.0,0.01]
[1730934390874,1.00275931,2737.7,2736.3,0.01]
[1730934391085,0.0538872,2737.7,2736.4,0.49228062]
[1730934391235,0.0538872,2737.7,2736.4,0.01]
[1730934391573,6.0298244,2738.9,2736.4,0.63307575]
[1730934391772,0.04403753,2737.6,2736.7,0.01]
[1730934391970,6.0298244,2738.9,2736.9,0.01]
[1730934391971,0.130987,2738.9,2736.9,0.01]
[1730934392143,0.130987,2738.9,2736.9,0.08306146]
[1730934392144,0.04838408,2737.5,2736.9,0.08306146]
[1730934392474,6.0298244,2738.9,2736.9,0.01]
[1730934392669,0.60298244,2738.8,2736.9,0.44828062]
[1730934392830,0.65210984,2738.8,2736.7,0.45828062]
[1730934393360,3.65210984,2738.8,2736.8,0.44828062]
[1730934393550,3.65210984,2738.8,2736.9,0.07306687]
[1730934393748,0.96819342,2738.7,2736.8,0.47379721]
[1730934393935,0.04901309,2738.6,2737.0,0.55]
[1730934394134,0.04901309,2738.6,2737.0,0.56]
[1730934394357,0.04901309,2738.6,2737.1,0.07305889]
[1730934394777,0.04901309,2738.6,2737.0,0.56]
[1730934394955,0.04901309,2738.6,2737.0,0.55]
[1730934395154,0.04901309,2738.6,2737.0,0.56]
[1730934395355,0.04901309,2738.6,2737.0,0.55]
[1730934395694,0.04901309,2738.6,2737.2,0.56]
[1730934395844,0.0362402,2738.6,2737.0,0.02]
[1730934396049,0.130987,2738.9,2737.0,0.02]
[1730934396269,0.0362402,2738.5,2737.1,0.96669728]
[1730934396488,0.130987,2738.9,2737.1,0.89049449]
[1730934396779,0.130987,2738.9,2736.2,3.0]
[1730934396780,0.0339385,2738.8,2736.6,0.01]
[1730934396999,0.70304599,2738.7,2736.6,0.01]
[1730934397290,0.73694638,2738.7,2736.7,0.01]
[1730934397442,0.73694638,2738.7,2737.0,0.01]
[1730934397647,0.03390039,2738.7,2737.2,0.01]
[1730934397841,0.130987,2738.9,2737.6,0.01]
[1730934398086,0.03386229,2738.6,2738.1,0.01]
[1730934398280,0.0339385,2738.8,2738.1,0.01]
[1730934398486,0.130987,2738.9,2738.3,0.01]
[1730934398861,0.130987,2738.9,2738.0,0.01]
[1730934399088,0.130987,2738.9,2737.7,0.7861]
[1730934399391,0.130987,2738.9,2738.0,0.01]
[1730934399681,0.130987,2738.9,2737.8,0.55]
[1730934399682,0.130987,2738.9,2737.8,0.56]
[1730934399986,0.131,2741.4,2739.1,0.01]
[1730934400146,0.74708244,2741.4,2739.6,0.01]
[1730934400347,0.74708244,2741.4,2739.7,0.01]
[1730934400556,0.74708244,2741.4,2739.7,0.08298677]
[1730934400888,0.74708244,2741.4,2739.7,0.01]
[1730934401043,0.74708244,2741.4,2739.8,0.07298605]
[1730934401244,0.74708244,2741.4,2739.5,0.02]
[1730934401455,0.74708244,2741.4,2739.5,0.01]
[1730934401784,0.74708244,2741.4,2739.5,0.0729927]
[1730934402003,0.74708244,2741.4,2739.3,0.57]
[1730934402004,5.8988374,2741.1,2739.2,0.8311]
[1730934402204,0.58988374,2741.0,2739.2,0.8311]
[1730934402930,0.74708244,2741.4,2739.3,0.01]
[1730934403195,0.55,2741.3,2739.3,0.01]
[1730934403397,0.55,2741.3,2739.4,0.55]
[1730934403554,0.74708244,2741.4,2739.7,0.01]
[1730934403763,0.74708244,2741.4,2740.4,0.8156]
[1730934403764,0.61608244,2741.4,2740.4,0.8156]
[1730934403996,0.61608244,2741.4,2739.9,0.01]
[1730934403997,0.130987,2741.6,2739.9,0.8156]
[1730934405195,0.55,2741.5,2739.9,0.8156]
[1730934406385,0.55,2741.5,2738.9,0.41903062]
[1730934406386,5.8988374,2740.8,2738.9,0.41903062]
[1730934406587,0.55,2740.6,2738.8,0.01]
[1730934406910,3.55,2740.2,2738.1,0.01]
[1730934407114,3.55,2740.2,2738.2,0.01]
[1730934407260,3.55,2740.2,2738.0,0.01]
[1730934407466,3.0,2739.1,2738.0,0.01]
[1730934407766,5.45477751,2739.6,2738.0,0.08303599]
[1730934407960,5.45477751,2739.6,2738.1,0.44379721]
[1730934408399,5.45477751,2739.6,2738.1,0.45379721]
[1730934408572,0.55,2739.5,2738.1,0.01]
[1730934408774,0.60047775,2739.4,2737.9,0.01]
[1730934409101,0.60047775,2739.4,2737.9,0.51683534]
[1730934409297,0.60047775,2739.4,2737.9,0.01]
[1730934409552,0.55,2739.5,2737.8,0.7987]
[1730934410529,0.55,2739.5,2737.2,0.7559]
[1730934410530,5.88540918,2738.9,2737.2,0.7559]
[1730934410686,4.3455,2738.8,2737.2,0.7559]
[1730934410881,4.39928137,2738.8,2737.2,0.7559]
[1730934411181,1.02846906,2738.7,2737.2,0.7559]
[1730934411387,0.55,2738.6,2737.2,0.7559]
[1730934411613,0.55,2738.6,2736.4,0.44379721]
[1730934411614,0.59389902,2738.6,2736.7,0.8165]
[1730934412502,0.61890251,2738.6,2736.7,0.8165]
[1730934412712,0.55,2738.6,2736.7,0.8165]
[1730934413022,0.55,2738.6,2736.4,0.01]
[1730934413023,3.55,2738.3,2736.2,0.7976]
[1730934413246,0.55,2738.0,2736.2,0.8076]
[1730934413407,0.55,2738.0,2736.2,0.7976]
[1730934413607,0.55,2738.0,2736.2,0.8076]
[1730934413933,0.55,2738.0,2736.3,0.47203887]
[1730934415183,0.7509,2738.1,2736.3,0.48203887]
[1730934415493,0.7509,2738.1,2736.6,0.01]
[1730934415695,0.94488374,2740.1,2737.2,0.8329]
[1730934415696,0.7778,2738.6,2737.2,0.8329]
[1730934416226,0.7778,2738.6,2736.6,0.43903062]
[1730934416378,0.7778,2738.6,2736.6,0.02]
[1730934416379,0.07306098,2738.5,2736.6,0.02]
[1730934417018,0.07306098,2738.5,2736.6,0.01]
[1730934417237,0.7778,2739.6,2738.1,0.55]
[1730934417414,0.07306098,2739.5,2738.2,2.22602545]
[1730934417585,0.14151389,2739.5,2738.0,0.8329]
[1730934418594,0.14151389,2739.5,2737.4,0.01]
[1730934418595,5.88540918,2739.4,2737.4,0.01]
[1730934418798,0.55,2739.2,2737.4,0.01]
[1730934418992,0.55,2739.0,2737.4,0.01]
[1730934419195,0.07306098,2738.9,2737.4,0.02]
[1730934419495,0.07306098,2738.9,2737.4,0.67682896]
[1730934419721,0.07306098,2738.9,2737.5,0.65682896]
[1730934419880,0.07306098,2739.1,2737.5,0.65682896]
[1730934420080,0.48833021,2739.1,2737.5,0.65682896]
[1730934420323,0.48833021,2739.1,2737.4,0.02]
[1730934420324,0.60973715,2739.0,2737.4,0.01]
[1730934420506,0.85086098,2738.9,2737.4,0.01]
[1730934420884,0.85086098,2738.9,2737.4,0.02]
[1730934421525,0.85086098,2738.9,2737.5,0.7561]
[1730934422427,0.7746,2739.5,2737.8,0.02]
[1730934422725,0.04783373,2738.8,2737.8,0.02]
[1730934422942,0.7746,2739.5,2737.8,0.01]
[1730934423306,0.04817656,2739.4,2737.6,0.01]
[1730934423491,0.04817656,2739.4,2737.9,0.01]
[1730934423900,0.55,2739.3,2737.5,0.7661]
[1730934424433,0.55,2739.1,2737.5,0.7661]
[1730934424642,0.55,2739.1,2737.6,0.07304937]
[1730934424796,0.04794802,2739.0,2737.6,0.07304937]
[1730934425002,0.04794802,2739.0,2737.6,0.654795]
[1730934425517,0.04794802,2739.0,2737.8,0.01]
[1730934425752,0.04794802,2739.0,2737.8,0.0730416]
[1730934425893,0.55,2739.4,2737.8,0.66478723]
[1730934426098,0.7746,2739.5,2737.9,0.01]
[1730934426297,0.04811943,2739.3,2738.0,0.08304153]
[1730934426499,0.04817656,2739.4,2738.0,0.01]
[1730934426812,0.7746,2739.5,2738.0,0.01]
[1730934426813,0.04811943,2739.3,2738.0,0.01]
[1730934427622,0.04811943,2739.3,2737.7,0.01]
[1730934427933,0.04811943,2739.3,2737.9,0.01]
[1730934428335,0.04811943,2739.3,2737.7,0.01]
[1730934428699,0.04811943,2739.3,2738.0,0.01]
[1730934429439,0.58854092,2739.8,2739.0,0.01]
[1730934429653,0.7692,2740.1,2739.0,0.02]
[1730934430147,0.00535009,2740.2,2739.2,0.01]
[1730934431055,0.00535009,2740.2,2739.2,0.09300293]
[1730934431402,0.00535009,2740.2,2739.7,0.01]
[1730934431602,0.00535009,2740.2,2739.5,0.01]
[1730934431846,0.00535009,2740.2,2739.7,0.02]
[1730934432068,0.00535009,2740.2,2739.7,0.07298908]
[1730934432362,0.00535009,2740.2,2739.5,0.01]
[1730934432530,0.00535009,2740.2,2738.9,5.42736065]
[1730934432729,0.00535009,2740.2,2739.1,0.01]
[1730934432730,0.8,2740.1,2739.1,0.01]
[1730934433144,0.00535009,2740.2,2739.2,0.01]
[1730934433349,0.00535009,2740.2,2739.1,0.01]
[1730934433672,0.00535009,2740.2,2738.9,0.79]
[1730934433970,0.00535009,2740.2,2738.9,0.78]
[1730934434130,0.00535009,2740.2,2738.9,0.79]
[1730934434531,0.00535009,2740.2,2738.9,0.78]
[1730934434727,0.00535009,2740.2,2738.8,2.41725052]
[1730934435044,3.55,2740.0,2738.8,2.41725052]
[1730934435241,3.0,2739.6,2738.8,2.41725052]
[1730934436769,0.817,2739.5,2738.8,0.30956646]
[1730934436991,0.43721,2739.9,2738.4,1.09675963]
[1730934436992,0.817,2738.8,2738.4,0.30846364]
[1730934437275,3.817,2738.8,2737.8,0.73295936]
[1730934437430,0.817,2738.8,2737.8,0.73295936]
[1730934439886,4.68370077,2738.5,2737.8,0.73295936]
[1730934440055,0.46837008,2738.4,2737.8,0.73295936]
[1730934440265,3.817,2738.8,2737.8,0.73295936]
[1730934440585,0.55,2738.7,2737.8,0.73295936]
[1730934442892,0.55,2738.7,2737.1,0.01]
[1730934443090,0.55,2738.7,2736.9,0.09306679]
[1730934443310,0.55,2738.5,2737.1,0.01]
[1730934443881,3.7533,2738.4,2736.9,0.08306679]
[1730934444081,3.7533,2738.4,2736.9,0.01]
[1730934445085,3.7533,2738.4,2736.5,3.0]
[1730934445086,0.55,2738.1,2736.6,0.01]
[1730934445287,0.55,2738.1,2736.7,0.01]
[1730934446349,5.23370077,2738.1,2736.7,0.01]
[1730934446681,3.0,2738.0,2736.7,0.01]
[1730934447398,3.0,2738.0,2736.6,0.47708457]
[1730934447601,0.82337008,2737.9,2736.4,3.6517777]
[1730934447759,0.82337008,2737.9,2736.7,0.01]
[1730934448177,0.82337008,2737.9,2736.4,3.6417777]
[1730934448380,4.68370077,2737.7,2736.4,3.6317777]
[1730934448596,0.7596,2737.5,2736.4,3.6317777]
[1730934449757,0.55,2737.4,2736.4,3.6317777]
[1730934450997,4.68370077,2736.9,2736.4,3.6317777]
[1730934451183,3.46837008,2736.8,2736.4,3.6317777]
[1730934451994,3.46837008,2736.8,2735.6,2.20160494]
[1730934451995,4.68370077,2736.5,2735.6,2.20160494]
[1730934452509,0.8035,2736.7,2735.6,2.20021081]
[1730934452804,0.55,2736.6,2735.6,2.20021081]
[1730934452957,3.0,2736.4,2735.0,0.7541]
[1730934453873,3.0,2736.4,2734.6,1.34179754]
[1730934453874,0.55,2736.1,2734.6,1.34179754]
[1730934454079,0.55,2736.1,2734.7,0.01]
[1730934454264,0.758,2736.2,2735.2,0.01]
[1730934454471,0.758,2736.2,2735.2,0.54319754]
[1730934454675,0.758,2736.2,2735.3,0.52319754]
[1730934454981,0.758,2736.2,2735.2,0.01]
[1730934455299,0.758,2736.2,2735.3,0.01]
[1730934455701,0.758,2736.2,2735.0,0.01]
[1730934455903,0.758,2736.2,2735.0,0.53319754]
[1730934457627,0.758,2736.2,2735.0,0.01]
[1730934457784,1.25887008,2736.8,2735.9,0.01]
[1730934457979,0.7905,2736.8,2735.9,0.01]
[1730934458277,0.7905,2736.8,2735.5,0.8193]
[1730934458278,0.7905,2736.8,2735.5,0.8293]
[1730934458487,0.7905,2736.8,2735.3,0.02]
[1730934458896,0.7905,2736.8,2735.5,0.01]
[1730934459079,0.7905,2736.8,2735.3,0.01]
[1730934459278,0.7905,2736.8,2735.1,0.8054]
[1730934459619,0.55,2736.5,2735.1,0.8054]
[1730934459825,0.55,2736.4,2735.0,0.01]
[1730934460114,0.55,2736.2,2735.0,0.01]
[1730934461144,3.0,2735.6,2734.3,0.8314]
[1730934461282,0.7781,2735.4,2734.3,0.8314]
[1730934461909,0.7781,2735.4,2733.9,0.57457714]
[1730934461910,0.55,2735.3,2733.9,1.38597714]
[1730934462150,0.7781,2735.1,2733.8,0.01]
[1730934462303,0.76837008,2735.5,2734.3,0.8173]
[1730934462630,0.55,2735.8,2734.3,0.8273]
[1730934462835,0.55,2735.8,2734.5,0.01]
[1730934464540,0.811,2735.9,2734.8,0.01]
[1730934466610,0.811,2735.9,2734.6,0.01]
[1730934466809,0.811,2735.9,2734.8,0.01]
[1730934467047,0.811,2735.9,2734.4,0.01]
[1730934467219,0.55,2735.8,2734.4,0.01]
[1730934467551,0.38154024,2737.2,2733.7,0.8173]
[1730934467552,0.811,2735.5,2733.7,0.8173]
[1730934467854,0.811,2735.1,2733.8,0.01]
[1730934468143,0.811,2735.1,2733.5,0.01]
[1730934468144,0.55,2735.0,2733.5,0.01]
[1730934468315,0.55,2735.0,2733.7,0.01]
[1730934472383,0.811,2735.1,2734.0,0.01]
[1730934472549,0.811,2735.1,2734.1,0.8271]
[1730934475085,0.811,2735.1,2733.7,0.8045]
[1730934475246,0.811,2735.1,2734.1,0.01]
[1730934475584,0.3811,2735.0,2734.1,0.01]
[1730934475750,0.811,2735.1,2733.7,1.34289362]
[1730934475961,0.811,2735.1,2734.1,0.01]
[1730934477785,0.811,2735.1,2734.1,0.02]
[1730934477987,0.54742008,2736.7,2734.3,0.01]
[1730934477988,0.7609,2735.5,2734.3,0.01]
[1730934480352,0.7609,2735.5,2734.1,0.01]
[1730934480353,0.55,2735.4,2734.1,0.01]
[1730934480934,0.55,2735.4,2734.3,0.01]
[1730934481355,0.7609,2735.5,2734.3,0.01]
[1730934481684,0.37609,2735.4,2734.3,0.01]
[1730934482052,0.37609,2735.4,2734.0,0.01]
[1730934482269,0.37609,2735.4,2734.3,0.01]
[1730934482470,0.55,2735.3,2733.8,0.01]
[1730934482700,0.55,2735.1,2734.0,0.01]
[1730934482997,0.806,2734.9,2733.7,0.7945]
[1730934483197,0.806,2734.9,2733.8,0.01]
[1730934487289,0.7564,2735.3,2734.1,0.01]